bitfinex-derivatives/quotes_BNBF0:USTF0_20250326
["timestamp","ask_amount","ask_price","bid_price","bid_amount"]
[1743026398167,0.99951596,620.05,619.36,0.32291397]
[1743026398667,0.99951596,620.04,619.36,0.32291397]
[1743026399464,0.99951596,620.03,619.36,0.32291397]
[1743026399970,0.99951596,620.02,619.36,0.32291397]
[1743026400670,2.25468972,620.01,619.36,0.32291397]
[1743026400865,1.25515559,620.0,619.36,0.32291397]
[1743026401069,1.25515559,619.99,619.36,0.32291397]
[1743026401265,0.99951596,619.99,619.36,0.32291397]
[1743026401770,0.99951596,619.98,619.36,0.32291397]
[1743026402668,0.99951596,619.97,619.36,0.32291397]
[1743026403265,0.99951596,619.96,619.36,0.32291397]
[1743026403968,0.99951596,619.95,619.36,0.32291397]
[1743026404571,1.25556295,620.03,619.36,0.32291397]
[1743026404765,1.25556295,620.02,619.36,0.32291397]
[1743026404968,1.965,620.07,619.36,0.32291397]
[1743026405172,1.0000237,620.01,619.36,0.32291397]
[1743026405972,1.0000237,620.0,619.36,0.32291397]
[1743026406675,2.3750237,619.99,619.36,0.32291397]
[1743026407272,1.0000237,619.98,619.36,0.32291397]
[1743026407876,1.0000237,619.97,619.36,0.32291397]
[1743026408666,1.375,619.99,619.36,0.32291397]
[1743026409575,1.00021419,619.98,619.36,0.32291397]
[1743026410170,1.00021419,619.97,619.36,0.32291397]
[1743026411275,1.00021419,619.96,619.36,0.32291397]
[1743026411873,1.00021419,619.95,619.36,0.32291397]
[1743026412675,1.00021419,619.94,619.36,0.32291397]
[1743026412872,1.25540942,619.93,619.36,0.32291397]
[1743026413075,1.25540942,619.92,619.36,0.32291397]
[1743026413270,2.60014588,619.93,619.36,0.32291397]
[1743026413474,1.25448878,619.92,619.36,0.32291397]
[1743026413669,1.25448878,619.91,619.36,0.32291397]
[1743026413870,1.375,619.99,619.36,0.32291397]
[1743026413871,2.25470297,619.92,619.36,0.32291397]
[1743026414074,1.25448878,619.91,619.36,0.32291397]
[1743026414272,1.00021419,619.92,619.36,0.32291397]
[1743026414876,1.00021419,619.91,619.36,0.32291397]
[1743026415277,1.25403435,619.9,619.36,0.32291397]
[1743026415482,1.25403435,619.89,619.36,0.32291397]
[1743026415684,1.25403435,619.88,619.36,0.32291397]
[1743026415884,1.25403435,619.89,619.36,0.32291397]
[1743026416084,1.00021419,619.87,619.36,0.32291397]
[1743026416580,1.00021419,619.86,619.36,0.32291397]
[1743026417385,1.00021419,619.85,619.36,0.32291397]
[1743026417981,1.00021419,619.84,619.36,0.32291397]
[1743026418582,1.00021419,619.83,619.36,0.32291397]
[1743026419280,1.25403435,619.94,619.36,0.32291397]
[1743026419281,1.00021419,619.82,619.36,0.32291397]
[1743026419587,1.158,619.82,619.36,0.32291397]
[1743026419980,1.00021419,619.81,619.36,0.32291397]
[1743026420381,1.00021419,619.8,619.07,0.28089888]
[1743026420787,1.00021419,619.8,618.71,1.20028437]
[1743026420986,1.00021419,619.8,618.73,0.32324277]
[1743026421182,1.158,619.82,619.02,0.28092836]
[1743026421386,1.158,619.82,618.73,0.32324277]
[1743026421982,0.997312,619.81,618.73,0.32324277]
[1743026422288,0.997312,619.81,618.74,0.28094763]
[1743026422489,0.997312,619.81,618.76,0.32322709]
[1743026422687,0.997312,619.8,618.76,0.32322709]
[1743026422889,1.25232591,619.79,618.76,0.32322709]
[1743026423188,2.24963791,619.78,618.76,0.32322709]
[1743026423388,0.997312,619.78,618.76,0.32322709]
[1743026423789,0.997312,619.77,618.76,0.32322709]
[1743026424386,0.997312,619.76,618.76,0.32322709]
[1743026424988,0.997312,619.75,618.76,0.32322709]
[1743026425590,0.997312,619.74,618.76,0.32322709]
[1743026426191,0.997312,619.73,618.76,0.32322709]
[1743026426892,0.997312,619.72,618.76,0.32322709]
[1743026427692,0.997312,619.71,618.76,0.32322709]
[1743026428092,1.53082164,619.81,618.76,0.32322709]
[1743026428093,0.997312,619.8,618.76,0.32322709]
[1743026428985,0.997312,619.79,618.76,0.32322709]
[1743026429591,0.997312,619.78,618.76,0.32322709]
[1743026430094,0.997312,619.77,618.76,0.32322709]
[1743026430392,0.28096465,619.79,618.76,0.32322709]
[1743026432788,0.997312,619.78,618.76,0.32322709]
[1743026433188,1.27831068,619.78,618.76,0.32322709]
[1743026433391,0.997312,619.77,618.76,0.32322709]
[1743026433891,0.997312,619.76,618.76,0.32322709]
[1743026434290,1.418,619.75,618.76,0.32322709]
[1743026434695,2.415312,619.75,618.76,0.32322709]
[1743026435195,0.997312,619.74,618.76,0.32322709]
[1743026435795,0.997312,619.73,618.76,0.32322709]
[1743026436391,0.997312,619.72,618.76,0.32322709]
[1743026436793,0.997312,619.71,618.76,0.32322709]
[1743026436993,2.127312,619.71,618.76,0.32322709]
[1743026437394,0.997312,619.7,618.76,0.32322709]
[1743026437895,2.24475873,619.69,618.76,0.32322709]
[1743026438100,0.997312,619.69,618.76,0.32322709]
[1743026438597,0.997312,619.68,618.76,0.32322709]
[1743026438997,0.997312,619.67,618.76,0.32322709]
[1743026439197,1.27842758,619.67,618.76,0.32322709]
[1743026439393,3.84045794,619.66,618.76,0.32322709]
[1743026439597,1.24744673,619.65,618.06,1.20028437]
[1743026439800,1.24744673,619.64,618.08,0.3235827]
[1743026439996,1.24744673,619.63,618.08,0.3235827]
[1743026440293,1.24744673,619.62,618.08,0.3235827]
[1743026440495,1.24744673,619.61,618.08,0.3235827]
[1743026440702,1.24744673,619.6,618.08,0.3235827]
[1743026440898,1.24744673,619.59,618.08,0.3235827]
[1743026441199,0.95484007,619.57,618.08,0.3235827]
[1743026441495,0.95484007,619.54,618.08,0.3235827]
[1743026441796,2.19928286,619.53,618.08,0.3235827]
[1743026441993,1.24744673,619.52,618.08,0.3235827]
[1743026442193,1.24744673,619.51,618.08,0.3235827]
[1743026442500,1.24744673,619.5,618.08,0.3235827]
[1743026442700,1.24744673,619.49,618.08,0.3235827]
[1743026442899,1.24744673,619.48,618.08,0.3235827]
[1743026443095,1.24744673,619.47,618.08,0.3235827]
[1743026443901,2.56816933,619.46,618.08,0.3235827]
[1743026444496,0.98775743,619.45,618.08,0.3235827]
[1743026444799,0.29676366,619.44,618.08,0.3235827]
[1743026444995,0.98775743,619.45,618.08,0.3235827]
[1743026445202,0.98775743,619.43,618.08,0.3235827]
[1743026445798,1.24744673,619.47,618.08,0.3235827]
[1743026446002,0.98775743,619.5,618.08,0.3235827]
[1743026446202,0.28124621,619.42,618.08,0.3235827]
[1743026446498,1.93780338,619.57,618.08,0.3235827]
[1743026446702,1.28449533,619.56,618.08,0.3235827]
[1743026446900,1.28449533,619.55,618.08,0.3235827]
[1743026447101,0.2967379,619.54,618.08,0.3235827]
[1743026447302,1.28449533,619.54,618.08,0.3235827]
[1743026447601,0.2967379,619.53,618.08,0.3235827]
[1743026447800,0.98775743,619.52,618.08,0.3235827]
[1743026448000,0.2967379,619.51,618.08,0.3235827]
[1743026448400,1.28449533,619.51,618.08,0.3235827]
[1743026448597,0.2967379,619.5,618.08,0.3235827]
[1743026448901,0.2967379,619.49,618.08,0.3235827]
[1743026449102,0.2967379,619.54,618.08,0.3235827]
[1743026449303,0.2812053,619.49,618.08,0.3235827]
[1743026449503,0.2967379,619.48,618.08,0.3235827]
[1743026451404,0.2812053,619.49,618.08,0.3235827]
[1743026455800,0.98775743,619.48,618.08,0.3235827]
[1743026456300,0.98775743,619.47,618.08,0.3235827]
[1743026457405,0.98775743,619.46,618.08,0.3235827]
[1743026458002,0.98775743,619.45,618.08,0.3235827]
[1743026458202,1.26894456,619.45,618.08,0.3235827]
[1743026458602,0.98775743,619.44,618.08,0.3235827]
[1743026459203,0.98775743,619.43,618.08,0.3235827]
[1743026459508,0.98775743,619.42,618.08,0.3235827]
[1743026459803,1.223,619.41,618.08,0.3235827]
[1743026461210,0.28125417,619.4,618.08,0.3235827]
[1743026462511,1.599,619.39,618.08,0.3235827]
[1743026464104,0.28125644,619.38,618.08,0.3235827]
[1743026466511,0.9,619.37,618.08,0.3235827]
[1743026469610,0.9,619.37,618.29,1.20028437]
[1743026469815,0.9,619.37,618.31,0.32346234]
[1743026473129,0.9,619.37,618.31,1.52374671]
[1743026475928,0.9,619.37,618.31,0.32346234]
[1743026479529,1.599,619.39,618.31,0.32346234]
[1743026483228,1.262,619.38,618.31,0.32346234]
[1743026484033,1.262,619.38,618.45,1.20028437]
[1743026484225,1.262,619.38,618.47,0.32337866]
[1743026487235,0.826,619.37,618.47,0.32337866]
[1743026490437,1.578,619.36,618.47,0.32337866]
[1743026502952,1.578,619.36,618.48,1.20028437]
[1743026503146,1.578,619.36,618.5,0.32336297]
[1743026504352,1.578,619.36,618.52,1.20028437]
[1743026504551,1.578,619.36,618.54,0.32334206]
[1743026506151,1.578,619.36,618.63,0.32329502]
[1743026516660,1.151,619.35,618.63,0.32329502]
[1743026521161,1.479,619.34,618.63,0.32329502]
[1743026523058,1.479,619.34,618.67,1.20028437]
[1743026523264,1.479,619.34,618.68,0.32326889]
[1743026528872,1.479,619.34,618.77,1.20028437]
[1743026529171,1.479,619.34,618.78,0.32321665]
[1743026530470,1.479,619.34,618.78,1.52350102]
[1743026532372,1.479,619.34,618.78,0.32321665]
[1743026532872,1.075,619.33,618.78,0.32321665]
[1743026534379,1.075,619.33,618.85,1.20028437]
[1743026534581,1.075,619.33,618.86,0.32317486]
[1743026536181,2.402,619.33,618.92,1.20028437]
[1743026538986,2.402,619.33,618.93,1.20028437]
[1743026541289,2.402,619.33,618.96,1.20028437]
[1743026542389,0.28098847,619.78,618.96,1.20028437]
[1743026542591,3.86061699,619.77,618.96,1.20028437]
[1743026542788,1.25702127,619.76,618.96,1.20028437]
[1743026542991,1.25702127,619.75,618.96,1.20028437]
[1743026543192,1.25704857,619.74,618.96,1.20028437]
[1743026543492,1.25704857,619.73,618.96,1.20028437]
[1743026543689,2.25843154,619.72,618.96,1.20028437]
[1743026543891,1.25704857,619.71,618.96,1.20028437]
[1743026544088,1.25704857,619.7,618.96,1.20028437]
[1743026544294,1.00138297,619.7,618.96,1.20028437]
[1743026544494,2.25843154,619.7,618.96,1.20028437]
[1743026544694,1.00138297,619.7,618.96,1.20028437]
[1743026544888,1.00138297,619.69,618.96,1.20028437]
[1743026545293,2.25843154,619.69,618.96,1.20028437]
[1743026545494,1.00138297,619.69,618.96,1.20028437]
[1743026545691,2.25843154,619.68,618.96,1.20028437]
[1743026545897,1.00138297,619.68,618.96,1.20028437]
[1743026546097,1.00138297,619.67,618.97,1.20028437]
[1743026546596,1.25738146,619.69,618.97,1.20028437]
[1743026546597,1.00138297,619.66,618.97,1.20028437]
[1743026546997,1.00138297,619.65,618.97,1.20028437]
[1743026547190,2.21538297,619.65,618.97,1.20028437]
[1743026547392,1.00138297,619.64,618.97,1.20028437]
[1743026547792,1.00138297,619.63,618.97,1.20028437]
[1743026548194,1.967,619.62,618.97,1.20028437]
[1743026548500,2.96838297,619.62,618.97,1.20028437]
[1743026549093,1.00138297,619.61,618.97,1.20028437]
[1743026549598,1.967,619.62,618.97,1.20028437]
[1743026550196,1.967,619.62,618.92,1.20028437]
[1743026550894,1.00188223,619.61,618.92,1.20028437]
[1743026551299,1.00188223,619.6,618.92,1.20028437]
[1743026551695,1.00188223,619.59,618.92,1.20028437]
[1743026551896,2.60488107,619.59,618.9,1.20028437]
[1743026552298,1.967,619.62,618.9,1.20028437]
[1743026552299,1.00188223,619.58,618.9,1.20028437]
[1743026552693,1.967,619.62,618.9,1.20028437]
[1743026552694,1.00188223,619.57,618.9,1.20028437]
[1743026553299,1.00188223,619.56,618.9,1.20028437]
[1743026553495,1.00188223,619.55,618.9,1.20028437]
[1743026553798,1.00188223,619.54,618.9,1.20028437]
[1743026554000,1.25778028,619.6,618.9,1.20028437]
[1743026554200,1.967,619.62,618.93,1.20028437]
[1743026554201,1.00199752,619.59,618.93,1.20028437]
[1743026554598,1.00199752,619.58,618.93,1.20028437]
[1743026554897,1.00199752,619.57,618.93,1.20028437]
[1743026555493,1.00199752,619.56,618.93,1.20028437]
[1743026556197,1.967,619.62,618.93,1.20028437]
[1743026556393,1.25794285,619.61,618.93,1.20028437]
[1743026556598,1.00212387,619.61,618.96,1.20028437]
[1743026557199,1.00212387,619.6,618.96,1.20028437]
[1743026557898,1.00212387,619.59,618.96,1.20028437]
[1743026558496,1.967,619.62,618.96,1.20028437]
[1743026559100,1.00232788,619.61,618.98,1.20028437]
[1743026559698,1.00232788,619.6,618.98,1.20028437]
[1743026560102,1.00232788,619.59,618.98,1.20028437]
[1743026560504,1.00232788,619.59,618.99,1.20028437]
[1743026560699,1.00232788,619.58,618.99,1.20028437]
[1743026561105,1.967,619.62,618.99,1.20028437]
[1743026561807,1.00263512,619.61,618.99,1.20028437]
[1743026562203,1.00263512,619.6,618.99,1.20028437]
[1743026562706,1.00263512,619.59,618.97,1.20028437]
[1743026563606,1.00263512,619.58,618.97,1.20028437]
[1743026564105,1.967,619.62,618.97,1.20028437]
[1743026564702,1.0030014,619.61,618.97,1.20028437]
[1743026565608,1.0030014,619.6,618.97,1.20028437]
[1743026566209,1.0030014,619.59,618.97,1.20028437]
[1743026566604,1.0030014,619.58,618.97,1.20028437]
[1743026566802,1.0030014,619.57,618.97,1.20028437]
[1743026567509,1.0030014,619.56,618.97,1.20028437]
[1743026568106,1.0030014,619.55,618.97,1.20028437]
[1743026568508,1.60495576,619.61,618.97,1.20028437]
[1743026568811,2.26226322,619.6,618.99,1.20028437]
[1743026569012,1.00309901,619.6,618.99,1.20028437]
[1743026569511,1.00309901,619.59,618.99,1.20028437]
[1743026570012,1.00309901,619.58,618.99,1.20028437]
[1743026570512,1.00309901,619.57,618.99,1.20028437]
[1743026571012,1.00309901,619.57,618.96,1.20028437]
[1743026571408,1.00309901,619.56,618.96,1.20028437]
[1743026572010,1.00309901,619.55,618.96,1.20028437]
[1743026572411,1.967,619.62,619.0,1.20028437]
[1743026572610,1.25924526,619.61,619.0,1.20028437]
[1743026572812,1.967,619.62,619.0,1.20028437]
[1743026573308,2.60819624,619.61,619.0,1.20028437]
[1743026573514,1.0031524,619.6,619.0,1.20028437]
[1743026574014,1.0031524,619.59,619.0,1.20028437]
[1743026574415,1.0031524,619.58,618.98,1.20028437]
[1743026574915,1.0031524,619.57,618.98,1.20028437]
[1743026575712,1.967,619.62,618.98,1.20028437]
[1743026576207,1.967,619.62,618.9,0.28095444]
[1743026576208,1.25905252,619.61,618.99,1.20028437]
[1743026576411,1.967,619.62,618.99,1.20028437]
[1743026576613,1.00301197,619.6,618.99,1.20028437]
[1743026577214,1.00301197,619.59,618.99,1.20028437]
[1743026577715,1.00301197,619.58,618.99,1.20028437]
[1743026577916,1.00301197,619.58,619.01,1.20028437]
[1743026578215,1.00301197,619.57,619.01,1.20028437]
[1743026578813,1.00301197,619.56,619.01,1.20028437]
[1743026579317,1.00301197,619.55,619.01,1.20028437]
[1743026579916,1.25893908,619.54,619.0,1.20028437]
[1743026580115,1.00301197,619.55,619.0,1.20028437]
[1743026580318,2.26193753,619.54,619.0,1.20028437]
[1743026580518,1.00301197,619.54,619.0,1.20028437]
[1743026580919,2.26215597,619.53,619.0,1.20028437]
[1743026581117,1.259144,619.52,619.0,1.20028437]
[1743026581315,1.259144,619.51,619.0,1.20028437]
[1743026581512,1.00301197,619.51,619.0,1.20028437]
[1743026581717,1.00301197,619.51,618.86,0.32317486]
[1743026581914,1.00301197,619.5,618.86,0.32317486]
[1743026582313,1.00301197,619.49,618.86,0.32317486]
[1743026582922,1.00301197,619.48,618.86,0.32317486]
[1743026583423,1.00301197,619.47,618.86,0.32317486]
[1743026584216,1.60472823,619.58,618.86,0.32317486]
[1743026584420,1.25873233,619.57,618.86,0.32317486]
[1743026584621,1.25873233,619.56,618.86,0.32317486]
[1743026584821,1.25873233,619.55,618.86,0.32317486]
[1743026585024,3.86623205,619.54,618.86,0.32317486]
[1743026585324,1.25873233,619.53,618.86,0.32317486]
[1743026585623,1.00277149,619.52,618.86,0.32317486]
[1743026586422,1.00277149,619.51,618.86,0.32317486]
[1743026587024,1.00277149,619.5,618.86,0.32317486]
[1743026587523,1.00277149,619.49,618.86,0.32317486]
[1743026587823,1.00277149,619.48,618.86,0.32317486]
[1743026588224,1.25897325,619.57,618.86,0.32317486]
[1743026588425,1.25894865,619.56,618.86,0.32317486]
[1743026588625,1.25894865,619.55,618.86,0.32317486]
[1743026588926,1.00296512,619.54,618.86,0.32317486]
[1743026589224,3.86644274,619.53,618.86,0.32317486]
[1743026589526,1.25889596,619.52,618.86,0.32317486]
[1743026589825,1.25889596,619.51,618.86,0.32317486]
[1743026590017,1.25889596,619.5,618.86,0.32317486]
[1743026590219,1.25889596,619.49,618.86,0.32317486]
[1743026590420,1.25889596,619.48,618.86,0.32317486]
[1743026590621,1.25889596,619.47,618.86,0.32317486]
[1743026590822,3.86644274,619.46,618.86,0.32317486]
[1743026591026,1.25889596,619.45,618.86,0.32317486]
[1743026591220,1.25889596,619.44,618.86,0.32317486]
[1743026591524,1.25889596,619.43,618.86,0.32317486]
[1743026591719,1.25889596,619.42,618.86,0.32317486]
[1743026591924,1.00296512,619.42,618.86,0.32317486]
[1743026592118,2.26186108,619.42,618.86,0.32317486]
[1743026592322,1.00296512,619.42,618.86,0.32317486]
[1743026592521,1.00296512,619.41,618.86,0.32317486]
[1743026592922,1.00296512,619.4,618.86,0.32317486]
[1743026593625,1.00296512,619.39,618.86,0.32317486]
[1743026594223,1.00296512,619.38,618.86,0.32317486]
[1743026594719,1.00296512,619.37,618.86,0.32317486]
[1743026595321,1.00296512,619.36,618.86,0.32317486]
[1743026595720,1.00296512,619.36,618.2,1.20028437]
[1743026595721,0.29719508,619.35,618.2,1.20028437]
[1743026596025,0.96070425,618.84,618.2,1.20028437]
[1743026596327,0.96070425,618.7,618.15,1.20028437]
[1743026596520,1.25505237,618.69,618.15,1.20028437]
[1743026597023,1.25505237,618.68,618.15,1.20028437]
[1743026597224,1.25505237,618.67,618.15,1.20028437]
[1743026597421,1.25505237,618.66,618.15,1.20028437]
[1743026597626,1.25505237,618.65,618.15,1.20028437]
[1743026597822,1.25505237,618.66,618.15,1.20028437]
[1743026598025,2.60754678,618.67,618.15,1.20028437]
[1743026598227,0.96077043,618.98,618.15,1.20028437]
[1743026598228,1.00296512,618.64,618.15,1.20028437]
[1743026598931,1.00296512,618.89,618.15,1.20028437]
[1743026599127,2.25801749,618.89,616.5,1.20028437]
[1743026599328,0.28139858,618.71,617.76,0.28139858]
[1743026599725,1.00296512,618.88,616.5,1.20028437]
[1743026599924,1.00296512,618.7,616.51,0.26309891]
[1743026600230,1.00296512,618.69,616.52,0.26309891]
[1743026600429,1.00296512,618.69,616.51,0.26309891]
[1743026600729,1.00296512,618.69,616.07,2.4505806]
[1743026600730,3.86259915,619.06,616.61,0.32435412]
[1743026600930,0.28159441,618.68,616.62,0.26309891]
[1743026601125,0.28159441,618.68,616.72,0.32429627]
[1743026601328,1.25505237,619.03,616.72,0.32429627]
[1743026601530,0.96077043,618.95,616.73,0.26311463]
[1743026601730,2.2158228,618.94,616.84,0.32423318]
[1743026601930,1.25505237,618.93,616.85,0.26311463]
[1743026602130,1.25505237,618.93,616.52,0.28159441]
[1743026602131,1.25505237,618.92,616.95,0.32417537]
[1743026602334,3.86259915,618.91,616.96,0.26311463]
[1743026602529,1.25505237,618.9,616.98,0.32415961]
[1743026602725,1.25505237,618.9,616.99,0.26311463]
[1743026602929,2.25801749,618.89,617.01,0.32414385]
[1743026603127,2.25801749,618.89,617.02,0.26313923]
[1743026603432,1.00296512,618.88,617.04,0.32412809]
[1743026603631,2.06496512,618.88,617.05,0.26313923]
[1743026603827,1.00296512,618.87,617.07,0.32411233]
[1743026606631,0.94946078,618.72,617.25,0.32401782]
[1743026606931,0.94946078,618.7,617.26,0.26314191]
[1743026607132,0.94946078,618.67,617.27,0.32400732]
[1743026607329,1.93114846,618.69,617.28,0.26314191]
[1743026607535,0.94946078,618.67,617.29,0.32399682]
[1743026607735,0.94946078,618.65,617.3,0.26314191]
[1743026607936,0.98168768,618.64,617.31,0.32398632]
[1743026608134,0.98168768,618.64,617.32,0.26327395]
[1743026608337,0.98168768,618.64,617.33,0.32397583]
[1743026608536,0.94946078,618.68,617.34,0.26327395]
[1743026608737,0.94946078,618.68,617.35,0.32396533]
[1743026609039,0.98168768,618.67,617.36,0.26327506]
[1743026609235,0.98168768,618.67,617.37,0.32395484]
[1743026609431,1.272714,618.71,617.38,0.26327506]
[1743026609636,0.94946078,618.69,617.39,0.58721981]
[1743026609835,0.29721482,618.68,617.4,0.58721456]
[1743026610036,0.29721482,618.68,617.41,0.26327547]
[1743026610334,1.41356934,618.67,617.41,0.26327547]
[1743026610536,0.29721482,618.66,617.41,0.26327547]
[1743026612736,1.41356934,618.67,617.41,0.26327547]
[1743026612947,0.2972072,618.66,617.42,0.26326798]
[1743026613247,0.2972072,618.66,617.43,0.26326798]
[1743026613540,1.41356934,618.67,617.44,0.26326798]
[1743026613737,1.41356934,618.67,617.41,0.26326798]
[1743026613937,1.41356934,618.67,617.44,0.32391811]
[1743026614145,1.41356934,618.67,617.45,0.26326798]
[1743026614345,1.41356934,618.67,617.46,0.32390762]
[1743026614548,1.41356934,618.67,617.47,0.26322408]
[1743026614741,1.41356934,618.67,617.48,0.32389713]
[1743026614946,1.41356934,618.67,617.49,0.26322408]
[1743026615147,1.41356934,618.67,617.5,0.32388663]
[1743026615446,1.41356934,618.67,617.51,0.26322408]
[1743026615842,1.132,618.67,617.52,0.32387614]
[1743026616247,0.28151468,618.66,617.53,0.26322408]
[1743026616554,0.28151468,618.66,617.54,0.32386566]
[1743026616746,0.28151468,618.66,617.55,0.26322408]
[1743026616949,0.28151468,618.66,617.56,0.32385517]
[1743026617248,0.28151468,618.66,617.57,0.26322408]
[1743026617448,0.28151468,618.66,617.58,0.32384468]
[1743026617649,0.28151468,618.66,617.59,0.26318291]
[1743026618046,0.28151468,618.66,617.6,0.32383419]
[1743026618251,0.28151468,618.66,617.61,0.26318291]
[1743026618442,0.28151468,618.66,617.62,0.32382371]
[1743026618647,0.28151468,618.66,617.63,0.26318291]
[1743026618848,1.132,618.67,617.64,0.32381322]
[1743026619148,1.132,618.67,617.65,0.26318291]
[1743026619749,1.132,618.67,617.66,0.32380273]
[1743026619951,1.132,618.67,617.67,0.26318291]
[1743026620149,0.28147255,618.66,617.68,0.32379225]
[1743026620353,0.28147255,618.66,617.69,0.26318291]
[1743026620554,0.28147255,618.66,617.7,0.32378177]
[1743026620954,0.28147255,618.66,617.71,0.26318291]
[1743026621955,1.132,618.67,617.71,0.26318291]
[1743026622352,0.28147369,618.65,617.7,0.32378177]
[1743026622550,0.28147369,618.65,617.71,0.26314322]
[1743026622951,0.28147369,618.65,617.7,0.32378177]
[1743026625159,0.32326367,618.69,617.7,0.32378177]
[1743026626353,0.28170838,618.68,617.7,0.32378177]
[1743026627158,1.127,618.67,617.7,0.32378177]
[1743026628356,0.28153176,618.66,617.7,0.32378177]
[1743026630760,0.29716932,618.65,617.7,0.32378177]
[1743026631262,0.29716932,618.64,617.7,0.32378177]
[1743026631461,0.29716932,618.66,617.7,0.32378177]
[1743026632365,1.44561833,618.65,617.7,0.32378177]
[1743026632566,0.29716932,618.64,617.7,0.32378177]
[1743026633464,2.61861833,618.65,617.7,0.32378177]
[1743026633665,0.29717185,618.64,617.7,0.32378177]
[1743026634261,0.28155454,618.63,617.7,0.32378177]
[1743026637070,3.79598048,618.65,617.7,0.32378177]
[1743026637467,0.28154087,618.62,617.7,0.32378177]
[1743026639067,0.29717284,618.61,617.7,0.32378177]
[1743026639262,0.29717284,618.61,617.71,0.26323422]
[1743026640166,2.16528284,618.63,617.7,0.32378177]
[1743026640367,0.28153404,618.6,617.71,0.26323452]
[1743026640564,0.29717316,618.59,617.71,0.26323452]
[1743026641171,0.28153404,618.6,616.93,1.20028437]
[1743026641365,0.29719715,618.59,617.4,0.28155682]
[1743026641567,0.29719715,618.59,617.41,0.58719214]
[1743026641869,0.28153404,618.6,617.42,0.58718689]
[1743026645563,2.73044313,618.52,617.46,0.26326737]
[1743026645766,0.97380245,618.51,617.46,0.26326737]
[1743026646263,1.91344313,618.51,617.46,0.26326737]
[1743026646464,0.93964068,618.5,617.46,0.26326737]
[1743026646665,0.93964068,618.49,617.46,0.26326737]
[1743026646971,0.93964068,618.48,617.46,0.26326737]
[1743026647170,2.19504779,618.48,617.46,0.26326737]
[1743026647370,1.25540711,618.48,617.46,0.26326737]
[1743026647871,0.97380245,618.47,617.46,0.26326737]
[1743026648172,0.97380245,618.46,617.47,0.26329179]
[1743026648470,0.97380245,618.46,617.48,0.26329179]
[1743026648670,0.97380245,618.45,617.46,0.26329179]
[1743026648871,0.97380245,618.45,617.47,0.26329179]
[1743026649072,0.97380245,618.45,617.45,0.32391286]
[1743026649073,0.97380245,618.45,617.46,0.26329179]
[1743026649267,0.28160922,618.44,617.47,0.26329179]
[1743026649570,0.97380245,618.43,617.48,0.26329179]
[1743026649772,0.97380245,618.43,617.46,0.26329179]
[1743026649972,0.97380245,618.42,617.47,0.26329179]
[1743026650164,0.97380245,618.42,617.46,0.26329179]
[1743026650368,0.97380245,618.42,617.47,0.26329179]
[1743026650564,0.97380245,618.41,617.46,0.26329179]
[1743026650874,0.97380245,618.41,617.47,0.26329179]
[1743026651067,0.97380245,618.4,617.46,0.26329179]
[1743026651269,0.97380245,618.4,617.48,0.26329179]
[1743026651468,0.97380245,618.4,617.47,0.26329179]
[1743026651670,0.97380245,618.39,617.48,0.26329179]
[1743026651869,0.97380245,618.39,617.46,0.26329179]
[1743026652071,0.97380245,618.39,617.47,0.26329179]
[1743026652372,1.25541851,618.38,617.48,0.26329179]
[1743026652571,1.25541851,618.38,617.46,0.26329179]
[1743026652767,1.25541851,618.38,617.49,0.26329179]
[1743026653072,0.97380245,618.37,617.5,0.26329179]
[1743026653273,0.97380245,618.37,617.46,0.26329179]
[1743026653474,0.97380245,618.37,617.47,0.26329179]
[1743026653674,0.97380245,618.36,617.46,0.26329179]
[1743026653873,0.97380245,618.36,617.47,0.26329179]
[1743026654073,0.97380245,618.36,617.46,0.26329179]
[1743026654277,0.97380245,618.36,617.48,0.26329179]
[1743026654474,0.97380245,618.35,617.47,0.26329179]
[1743026654674,0.97380245,618.35,617.48,0.26329179]
[1743026654875,0.97380245,618.35,617.46,0.26329179]
[1743026655068,0.97380245,618.35,617.47,0.26329179]
[1743026655273,2.22077205,618.34,617.48,0.26329179]
[1743026655473,1.2469696,618.33,617.49,0.26329179]
[1743026655670,1.2469696,618.32,617.5,0.26329179]
[1743026655978,2.22077205,618.31,617.51,0.26329179]
[1743026656272,0.97380245,618.31,617.52,0.26329179]
[1743026656477,1.25094562,618.3,617.53,0.26329179]
[1743026656672,0.97380245,618.29,617.46,0.26329179]
[1743026656875,0.97380245,618.29,617.47,0.26329179]
[1743026657076,0.97380245,618.29,617.45,0.32391286]
[1743026657077,0.97380245,618.29,617.48,0.26329179]
[1743026657277,0.97380245,618.28,617.49,0.26329179]
[1743026657475,0.97380245,618.28,617.5,0.26329179]
[1743026657678,0.97380245,618.28,617.46,0.26329179]
[1743026657879,0.97380245,618.27,617.47,0.26329179]
[1743026658080,0.97380245,618.27,617.46,0.26329179]
[1743026658383,0.97380245,618.26,617.47,0.26329179]
[1743026658575,0.97380245,618.26,617.46,0.26329179]
[1743026658880,0.97380245,618.25,617.47,0.26329179]
[1743026659075,0.97380245,618.25,617.48,0.26329179]
[1743026659287,0.97380245,618.24,617.46,0.26329179]